Cogmind - Beta 14 @@@ ROGUE MODE // 2024.11.01 @ 17:51:52 Player: OG DANIEL Result: Destroyed by D-53 Grenadier with Mini Grenade Launcher Performance ------------- Evolutions (0) 0 Regions Visited (4) 800 Robots Destroyed (10) 50 Value Destroyed (307) 307 Prototype IDs (0) 0 Alien Tech Used (0) 0 Bonus (5) 5 TOTAL SCORE: 1162 Bonus ------- Follower Combat Kills 21 Friendly Fire -16 Cogmind --------- Core Integrity 0/250 Matter 287/300 Energy 350/350 System Corruption 0% Temperature Cool (0) Movement Core (200) Ox3 Location -9/Mines Parts ------- > --- POWER (1) -------- (None) > --- PROPULSION (2) --- (None) > --- UTILITY (2) ------ Small Storage Unit High-capacity Battery > --- WEAPON (2) ------- Light Assault Rifle Mini Grenade Launcher > --- INVENTORY (8) ---- Aluminum Leg Small Storage Unit Light Armor Plating Light Assault Rifle Rocket Launcher Mini Grenade Launcher Mini Grenade Launcher Peak State ------------ > --- POWER ------------ Ion Engine > --- PROPULSION ------- Flight Unit Flight Unit > --- UTILITY ---------- Small Storage Unit High-capacity Battery > --- WEAPON ----------- Light Assault Rifle Mini Grenade Launcher > --- INVENTORY -------- Aluminum Leg Flight Unit Small Storage Unit Medium Laser Light Assault Rifle Rocket Launcher Mini Grenade Launcher Mini Grenade Launcher [Rating: 9] Favorites ----------- Power Ion Engine Engine Ion Engine Propulsion Light Treads Treads Light Treads Leg Aluminum Leg Flight Unit Flight Unit Utility Small Storage Unit Storage Small Storage Unit Weapon Light Assault Rifle Energy Gun Small Laser Ballistic Gun Light Assault Rifle Launcher Mini Grenade Launcher Build | -11 -10 -10 -10 -9 ------- Run | Yrd Mat Min Exi Min Slots Evolved . | . . . . . Power . | . . . . . Propulsion . | . . . . . Utility . | . . . . . Weapon . | . . . . . Parts Attached 15 | 7 1 6 . 1 Power 3 | 2 . 1 . . Engine 3 | 2 . 1 . . Core . | . . . . . Reactor . | . . . . . Propulsion 6 | 2 . 3 . 1 Treads 2 | 2 . . . . Leg 1 | . . 1 . . Wheel . | . . . . . Hover . | . . . . . Flight 3 | . . 2 . 1 Utility 2 | 1 . 1 . . Device . | . . . . . Storage 2 | 1 . 1 . . Processor . | . . . . . Hackware . | . . . . . Protection . | . . . . . Artifact . | . . . . . Weapon 4 | 2 1 1 . . Energy Gun 1 | 1 . . . . Energy Cannon . | . . . . . Ballistic Gun 1 | 1 . . . . Ballistic Cannon . | . . . . . Launcher 2 | . 1 1 . . Special Weapon . | . . . . . Impact Weapon . | . . . . . Slashing Weapon . | . . . . . Piercing Weapon . | . . . . . Special Melee Weapon . | . . . . . Unidentified Prototypes . | . . . . . Parts Lost 6 | . 1 1 . 4 Power 2 | . 1 . . 1 Propulsion 4 | . . 1 . 3 Utility . | . . . . . Weapon . | . . . . . Highest Loss Streak 3 | . 1 1 . 3 To Critical Strikes . | . . . . . Average Slot Usage (%) 84 | . 83 82 100 87 Engine 13 | . 12 14 14 12 Treads 14 | . 28 6 . . Leg 1 | . . 2 . . Flight 9 | . . 13 28 17 Storage 16 | . 14 16 28 28 Ballistic Gun 14 | . 14 14 14 14 Launcher 13 | . 12 14 14 14 Peak Build Rating 9 | 6 8 9 9 9 Average Rating 7 | 4 7 7 9 8 On Entrance 6 | . 6 7 9 9 Naked Turns . | . . . . . Heaviest Build 16 | 12 10 16 16 16 Greatest Support 40 | 40 40 40 8 8 Greatest Overweight (x) 3 | . . 2 1 3 Average Overweight (x) . | . . 1 1 1 Largest Inventory Capacity 8 | 8 8 8 8 8 Average Capacity 7 | 6 8 8 8 8 Most Carried 8 | 7 8 8 8 8 Average Carried 7 | 2 7 6 8 7 Final Capacity 8 | 8 8 8 8 8 Final Carried 8 | 7 8 8 8 7 Class Distribution -------------------- 100% | Mutant Dominant Class ---------------- Mutant | -10/Materials Mutant | -10/Mines Mutant | -10/Exiles Mutant | -9/Mines Resources | -11 -10 -10 -10 -9 ----------- Run | Yrd Mat Min Exi Min Matter Collected 430 | 271 52 97 . 10 Remotely . | . . . . . Salvage Created 296 | 81 147 68 . . Parts 21 | 2 13 6 . . Haulers Intercepted . | . . . . . Recyclers Shooed . | . . . . . Parts Field Recycled . | . . . . . Retrieved Matter . | . . . . . Parts Self-Destructed . | . . . . . Prevented . | . . . . . Kills | -11 -10 -10 -10 -9 ------- Run | Yrd Mat Min Exi Min Combat Hostiles Destroyed 9 | . 5 4 . . Guns 3 | . 2 1 . . AOE 6 | . 3 3 . . Classes Destroyed 3 | 1 1 1 . . Recycler 1 | 1 . . . . Swarmer 2 | . . 2 . . Grunt 7 | . 5 2 . . Best Kill Streak 4 | 1 3 4 . . Combat Bots Only 4 | . 3 4 . . Max Kills in Single Turn 2 | 1 2 2 . . Gunslinging . | . . . . . Exploded 2 | . 2 2 . . Melee . | . . . . . Uniques/NPCs Destroyed . | . . . . . Combat | -11 -10 -10 -10 -9 -------- Run | Yrd Mat Min Exi Min Hostile Shots Fired 50 | . 21 21 . 8 Missed 15 | . 6 8 . 1 Damage Taken 803 | . 257 221 . 325 Core 254 | . 64 35 . 155 Absorbed by Shields . | . . . . . Core Remaining (%) 100 | 100 . . . . Volleys Fired 37 | 1 16 12 . 8 Largest 2 | 2 2 2 . 2 Hottest 60 | 60 50 50 . 50 Shots Fired 46 | 2 19 15 . 10 Gun 38 | 2 16 12 . 8 Cannon . | . . . . . Launcher 8 | . 3 3 . 2 Special . | . . . . . Kinetic 37 | 1 16 12 . 8 Thermal 1 | 1 . . . . Explosive 8 | . 3 3 . 2 Electromagnetic . | . . . . . Robot Hit Streak 18 | 2 9 16 . 18 Robot Miss Streak 5 | . 2 . . 5 Penetration Max . | . . . . . Secondary Targets . | . . . . . Shots Hit Robots 24 | 2 11 7 . 4 Core Hits 21 | 2 9 7 . 3 Critical Kills . | . . . . . Critical Parts Destroyed . | . . . . . Critical Strikes . | . . . . . Melee Attacks . | . . . . . Impact . | . . . . . Slashing . | . . . . . Piercing . | . . . . . Sneak Attacks . | . . . . . Combat Hostiles . | . . . . . Follow-up Attacks . | . . . . . Damage Inflicted 719 | 21 273 338 . 87 Guns 185 | 21 91 45 . 28 Cannons . | . . . . . Explosions 534 | . 182 293 . 59 Melee . | . . . . . Ramming . | . . . . . Kinetic 174 | 10 91 45 . 28 Thermal 11 | 11 . . . . Explosive 534 | . 182 293 . 59 Electromagnetic . | . . . . . Impact . | . . . . . Slashing . | . . . . . Piercing . | . . . . . Highest Corruption . | . . . . . Average Corruption . | . . . . . Corruption Purged . | . . . . . Corruption Blocked . | . . . . . Overload Shots . | . . . . . Overflow Damage 21 | . . 21 . . Projectiles . | . . . . . Explosions 21 | . . 21 . . Melee . | . . . . . Knockbacks . | . . . . . Impact . | . . . . . Kinetic . | . . . . . Secondary . | . . . . . Self-Inflicted Damage 231 | . 90 78 . 63 Shots 6 | . 2 2 . 2 Rammed . | . . . . . Targets Rammed . | . . . . . Kicked . | . . . . . Crushed . | . . . . . Highest Temperature 27 | 20 16 27 . 12 Average Temperature 7 | 15 7 10 . 3 Received Heat Transfer 150 | . 90 60 . . Siege Activations . | . . . . . Robots Corrupted . | . . . . . Combat Hostiles . | . . . . . Parts Fried . | . . . . . Impact Corruptions . | . . . . . Robots Melted . | . . . . . Combat Hostiles . | . . . . . Parts Melted . | . . . . . Heat Transferred 25 | 25 . . . . Parts Sabotaged . | . . . . . Parts Stolen . | . . . . . Parts Stripped . | . . . . . Power Chain Reactions . | . . . . . Alert | -11 -10 -10 -10 -9 ------- Run | Yrd Mat Min Exi Min Peak Influence 243 | 5 218 243 . 2 Initial 84 | . 3 84 . . Average 81 | 2 35 148 . . Maximum Alert Level 1 | . 1 1 . . Low Security (%) 89 | 100 94 82 . 100 Level 1 10 | . 5 17 . . Level 2 . | . . . . . Level 3 . | . . . . . Level 4 . | . . . . . Level 5 . | . . . . . High Security . | . . . . . Max Security . | . . . . . Squads Dispatched 2 | . 2 . . . Investigation 1 | . 1 . . . Extermination . | . . . . . Reinforcement 1 | . 1 . . . Assault . | . . . . . Garrison . | . . . . . Intercept . | . . . . . Searches Triggered . | . . . . . Construction Impeded . | . . . . . Haulers Reinforced . | . . . . . Active Scanning Responses . | . . . . . Cargo Convoy Interrupts . | . . . . . Stealth | -11 -10 -10 -10 -9 --------- Run | Yrd Mat Min Exi Min Distress Signals . | . . . . . Communications Jammed . | . . . . . Distress Signals . | . . . . . Times Spotted 22 | . 9 8 . 5 Peak Tracking Total 5 | . 4 5 . 3 Tactical Retreats . | . . . . . Traps | -11 -10 -10 -10 -9 ------- Run | Yrd Mat Min Exi Min Traps Triggered . | . . . . . Indirectly . | . . . . . Trap Hack Attempts . | . . . . . Triggered . | . . . . . Disarmed . | . . . . . Reprogrammed . | . . . . . Reused . | . . . . . Traps Extracted . | . . . . . Installed . | . . . . . Triggered . | . . . . . Machines | -11 -10 -10 -10 -9 ---------- Run | Yrd Mat Min Exi Min Machines Disabled 3 | . 3 . . . Max in Single Turn 1 | . 1 . . . Machines Repaired . | . . . . . Machines Dismantled . | . . . . . Machines Sabotaged . | . . . . . Overloaded Fab Kills . | . . . . . Hacking | -11 -10 -10 -10 -9 --------- Run | Yrd Mat Min Exi Min Machines Accessed 1 | . 1 . . . Terminals 1 | . 1 . . . Fabricators . | . . . . . Repair Stations . | . . . . . Recycling Units . | . . . . . Scanalyzers . | . . . . . Garrison Access . | . . . . . Total Hacks 3 | . 3 . . . Successful 2 | . 2 . . . Failed 1 | . 1 . . . Catastrophic . | . . . . . Database Lockouts . | . . . . . Manual . | . . . . . Terminals 3 | . 3 . . . Fabricators . | . . . . . Repair Stations . | . . . . . Recycling Units . | . . . . . Scanalyzers . | . . . . . Garrison Access . | . . . . . Terminal Hacks 2 | . 2 . . . Record 2 | . 2 . . . Fabricator Hacks . | . . . . . Repair Station Hacks . | . . . . . Recycling Unit Hacks . | . . . . . Scanalyzer . | . . . . . Garrison Access Hacks . | . . . . . Unauthorized Hacks . | . . . . . Terminals . | . . . . . Fabricators . | . . . . . Repair Stations . | . . . . . Recycling Units . | . . . . . Scanalyzers . | . . . . . Garrison Access . | . . . . . Data Cores Recovered . | . . . . . Used . | . . . . . Hacking Detections 1 | . 1 . . . Full Trace Events 1 | . 1 . . . Feedback Events . | . . . . . Feedback Blocked . | . . . . . Robot Schematics Acquired . | . . . . . Robots Built . | . . . . . Authchips . | . . . . . Time . | . . . . . Total Robot Build Rating . | . . . . . Part Schematics Acquired . | . . . . . Parts Built . | . . . . . Authchips . | . . . . . Time . | . . . . . Total Part Build Rating . | . . . . . Parts Repaired . | . . . . . Time . | . . . . . Parts Recycled . | . . . . . Recycled Matter . | . . . . . Retrieved Matter . | . . . . . Retrieved Components . | . . . . . Parts Scanalyzed . | . . . . . Part Schematics Acquired . | . . . . . Parts Damaged . | . . . . . Bothacking | -11 -10 -10 -10 -9 ------------ Run | Yrd Mat Min Exi Min Used RIF Installer . | . . . . . Robots Hacked . | . . . . . Non-combat . | . . . . . Combat . | . . . . . Robot Hacks Applied . | . . . . . Relay Couplers Released . | . . . . . Fabnet Peak Effective % . | . . . . . Robots Rewired . | . . . . . Allies Hacked . | . . . . . Hacks Repelled . | . . . . . Allies | -11 -10 -10 -10 -9 -------- Run | Yrd Mat Min Exi Min Total Allies 5 | . . 3 . 2 Largest Group 4 | . . 3 2 4 Highest-Rated Group 70 | . . 40 24 70 Highest-Rated Ally 31 | . . 16 16 31 Total Orders . | . . . . . Ally Attacks 33 | . . 13 . 20 Total Damage 455 | . . 92 . 363 Kills 6 | . . 3 . 3 Allies Corrupted 1 | . . . . 1 Allies Melted . | . . . . . Intel | -11 -10 -10 -10 -9 ------- Run | Yrd Mat Min Exi Min Robot Analysis Total . | . . . . . Derelict Logs Recovered . | . . . . . Drone Launches . | . . . . . Drone Recoveries . | . . . . . Exploration | -11 -10 -10 -10 -9 ------------- Run | Yrd Mat Min Exi Min Turns Passed 1082 | 96 397 475 40 74 Spaces Moved 596 | 52 220 260 35 29 Core 6 | 6 . . . . Treads 329 | 46 220 63 . . Legs . | . . . . . Wheels . | . . . . . Hover . | . . . . . Flight 261 | . . 197 35 29 Fastest Speed 50 | 50 160 117 117 117 Average Speed 158 | 147 160 162 117 190 Slowest Speed 280 | 160 160 210 117 280 Overloaded Moves . | . . . . . Propulsion Burnouts . | . . . . . Robots Hopped . | . . . . . Cave-ins Triggered . | . . . . . Exploration Rate (%) 18 | 5 25 41 9 14 Regions Visited 4 Branch Regions 3 Pre-discovered Areas . | . . . . . Known Exits Taken . | . . . . . Unknown Exits Taken 4 | 1 1 1 1 . Scrap Searched 2 | . . 2 . . Spaces Dug . | . . . . . Terrain Destroyed 48 | . 13 24 . 11 Melee . | . . . . . Projectile . | . . . . . AOE 48 | . 13 24 . 11 Terrain Rammed . | . . . . . Walls Destroyed . | . . . . . Machines Disabled . | . . . . . Actions | -11 -10 -10 -10 -9 --------- Run | Yrd Mat Min Exi Min Total 690 | 66 250 301 34 39 Wait 22 | . 10 11 . 1 Move 592 | 51 219 259 34 29 Hop . | . . . . . Pick Up 16 | 7 2 7 . . Fast Attach 9 | 6 1 2 . . Attach 5 | . . 4 . 1 Detach . | . . . . . Swap 1 | 1 . . . . Drop 8 | . 2 6 . . Fire 37 | 1 16 12 . 8 Melee . | . . . . . Ram . | . . . . . Kick . | . . . . . Crush . | . . . . . Escape Stasis . | . . . . . Rewire . | . . . . . Trap . | . . . . . Miscellaneous . | . . . . . Route ------- -11/Scrapyard -10/Materials -10/Mines (discovered 2 exits: [*Mat] / [*Exi]) -10/Exiles -9/Mines History --------- Turn | Location | Event 9 | -11/Scrapyard | Discovered new exit (range 14) 97 | -11/Scrapyard | Entered Materials 307 | -10/Materials | Build established: Mutant 310 | -10/Materials | Discovered new exit (range 14) 494 | -10/Materials | Entered Mines 526 | -10/Mines | Discovered new exit (range 11) 723 | -10/Mines | Received a Rocket Launcher from a helpful Derelict 769 | -10/Mines | Assisted by bots powering up and referring to "LRC-V3" 962 | -10/Mines | Deemed a non-threat by the Exiles lab entrance 963 | -10/Mines | Discovered new exit (range 5) 969 | -10/Mines | Entered Exiles 969 | -10/Exiles | Found Exiles lab abandoned 969 | -10/Exiles | Accompanied by 2 allies 993 | -10/Exiles | Discovered new exit (range 15) 1009 | -10/Exiles | Entered Mines 1009 | -9/Mines | Accompanied by 2 allies 1010 | -9/Mines | Assembled infested the area 1056 | -9/Mines | Lost 3 allies 1078 | -9/Mines | Core integrity fell below 50% 1082 | -9/Mines | Core integrity fell below 20% 1083 | -9/Mines | Destroyed by D-53 Grenadier with Mini Grenade Launcher Last Messages --------------- 01019_ as-10145 destroyed. 01021_ A0-TVZ(z) system corrupted by crushing effect. 01021_ as-28081 suffers critical hit (Smash). 01021_ as-28081 system corrupted by crushing effect. 01022_ A0-TVZ(z) system terminally corrupted. 01022_ Flight Unit destroyed. 01022_ as-28081 destroyed. 01025_ Mercenary 1a destroyed. 01030_ as-74314 suffers critical hit (Burn). 01042_ as-74314 destroyed. 01070_ Acquired 10 matter. 01074_ The unstable cave ceiling collapses. 01077_ Flight Unit destroyed. 01079_ The unstable cave ceiling collapses. 01079_ VV-QP3(g) destroyed. 01079_ Ion Engine destroyed. 01079_ Flight Unit destroyed. 01081_ The unstable cave ceiling collapses. Map ----- +----------------------------------------------------+ | ??????????????????????????????????????????? | | ??????????????????????????????????????????? | | ??????????????????????????????????????????? | | ??????????????????????????????????????????? | | ??????????????????????????????????????????? | | ??????????????????????????????????????????? | | ??????????????????????????????????????????? | | ??????????????????????????????????????????? | | ??????????????????????????????????????????? | | ??????????????????????????????????????????? | | ??????????????????????????????????????????? | | ??????????????????????????????????????????? | | ??????????????????????????????????????????? | | ????????????????????????? #???????????????? | | ????????????????????????? #???????????????? | | ???????????????????????? ##??????????????? | | ???????????????????????# ???????????????? | | ??????????????????????# #???????????????? | | ?????????????????????? % ####????????????? | | ????????????????????? #????????????? | | ????????????????##?## ?????????????? | | ??????????####### # # #????????????? | | ?????????## ## ##????????????? | | ?????????# # #????????????? | | ????????## #????????????? | | ?????#### @ d #??????????? | | ????## d #?????????? | | ????# < #?????????? | | ????# % # #?????????? | | ????# * %= # #?????????? | | ????# %[ % ### ??????????? | | ????# ## #??? # ??????????? | | ????# #### ##???? ??????????? | | ????## ???# ###?????? ???????????? | | ?????# ???## ##????????? #???????????? | | ?????# ????#####??????????? ????????????? | | ?????# ?????????????????????????????????? | | ????? ?????????????????????????????????? | | ???? ??????????????????????????????????? | | ???? ??????????????????????????????????? | | ???## ??????????????????????????????????? | | ????# ??????????????????????????????????? | | ????# ??????????????????????????????????? | | ????? ???????????????????????????????????? | | ??????????????????????????????????????????? | | ??????????????????????????????????????????? | | ??????????????????????????????????????????? | | ??????????????????????????????????????????? | | | | | +----------------------------------------------------+ Best States ------------- Heat Dissipation 25 Energy Generation 10 Energy Capacity 500 Matter Stores 300 Matter Capacity 300 Sight Range 16 Terrain Scan Density 10 Evasion (%) 40 Recoil Reduction 2 Item Schematics ----------------- None Robot Schematics ------------------ None Fabricated ------------ Nothing Alien Tech Used ----------------- None Achievements -------------- None Challenges ------------ None Game ------ Seed EncryptedAlloyMount Manual? 0 Play Time 00:13:04 Cumulative 5.0 hours Start 2024.11.01 @ 17:40:06 End 2024.11.01 @ 17:51:52 Sessions 1 Manual Loads 0 Difficulty Rogue Special Mode None Game No. 24 Rogue 24 Adventurer 0 Explorer 0 Win Type - Total 0 Types 0/0/0/0/0/0/0/0/0 Lore% 4 Gallery% 11 Achievement% 8 Wizard Run 0 Options --------- Layout 1 ASCII 0 Keyboard 0 Movement Numpad Keybinds 0 Fullscreen 0 Font 20/SmallcapsGlow Map View 50x35 Zoom Use 0% Tactical HUD 1 Map Filters NONE Filters NONE Steam 1 RUN: 5f50574e-2b2b-4f0d-b3ea-f7c1d7f34441